[Event "Titled Tuesday Blitz January 03 Late 2023"]
[White "Berezin, Viktor"]
[Black "Sjugirov, Sanan"]
[WhiteFideId "14107872"]
[BlackFideId "4189302"]
[WhiteElo "2307"]
[BlackElo "2712"]
[Result "0-1"]
[Round "01"]
[TimeControl "180+2"]
[Date "2023.01.03"]
[WhiteClock "0:00:12"]
[BlackClock "0:00:16"]

1. d4 {[%clk 0:02:59]}  Nf6 {[%clk 0:02:58]} 2. Nf3 {[%clk 0:02:59]}  e6 {[%clk 0:02:58]} 3. c4 {[%clk 0:02:59]}  h6 {[%clk 0:02:57]} 4. g3 {[%clk 0:02:58]}  d5 {[%clk 0:02:57]} 5. Bg2 {[%clk 0:02:58]}  Bd6 {[%clk 0:02:57]} 6. O-O {[%clk 0:02:58]}  O-O {[%clk 0:02:57]} 7. Qc2 {[%clk 0:02:55]}  b6 {[%clk 0:02:54]} 8. b3 {[%clk 0:02:53]}  Bb7 {[%clk 0:02:54]} 9. Bb2 {[%clk 0:02:54]}  Nbd7 {[%clk 0:02:53]} 10. Nc3 {[%clk 0:02:54]}  Rc8 {[%clk 0:02:47]} 11. Rac1 {[%clk 0:02:50]}  a6 {[%clk 0:02:45]} 12. Rfd1 {[%clk 0:02:50]}  Qe7 {[%clk 0:02:43]} 13. cxd5 {[%clk 0:02:44]}  exd5 {[%clk 0:02:43]} 14. Nh4 {[%clk 0:02:44]}  g6 {[%clk 0:02:32]} 15. Re1 {[%clk 0:02:09]}  Rfe8 {[%clk 0:02:30]} 16. Rcd1 {[%clk 0:02:07]}  c5 {[%clk 0:02:02]} 17. dxc5 {[%clk 0:02:07]}  Bxc5 {[%clk 0:02:03]} 18. Qd2 {[%clk 0:02:03]}  Ne5 {[%clk 0:01:33]} 19. h3 {[%clk 0:01:56]}  d4 {[%clk 0:01:28]} 20. Na4 {[%clk 0:01:48]}  Bb4 {[%clk 0:01:14]} 21. Qxh6 {[%clk 0:01:42]}  Bxg2 {[%clk 0:01:12]} 22. Nxg2 {[%clk 0:01:38]}  Bxe1 {[%clk 0:01:09]} 23. Rxe1 {[%clk 0:01:39]}  d3 {[%clk 0:01:05]} 24. Bxe5 {[%clk 0:01:28]}  Qxe5 {[%clk 0:01:02]} 25. exd3 {[%clk 0:01:27]}  Qd4 {[%clk 0:00:54]} 26. Rxe8+ {[%clk 0:00:58]}  Rxe8 {[%clk 0:00:53]} 27. Qd2 {[%clk 0:00:58]}  Nd5 {[%clk 0:00:46]} 28. Nb2 {[%clk 0:00:56]}  Qc3 {[%clk 0:00:44]} 29. Qxc3 {[%clk 0:00:36]}  Nxc3 {[%clk 0:00:45]} 30. Ne3 {[%clk 0:00:37]}  Nxa2 {[%clk 0:00:42]} 31. Kf1 {[%clk 0:00:37]}  b5 {[%clk 0:00:39]} 32. Ke2 {[%clk 0:00:37]}  Nc1+ {[%clk 0:00:38]} 33. Kd1 {[%clk 0:00:34]}  Nxb3 {[%clk 0:00:39]} 34. Nd5 {[%clk 0:00:32]}  Re6 {[%clk 0:00:33]} 35. Kc2 {[%clk 0:00:26]}  Nd4+ {[%clk 0:00:33]} 36. Kc3 {[%clk 0:00:27]}  Ne2+ {[%clk 0:00:33]} 37. Kd2 {[%clk 0:00:27]}  Ng1 {[%clk 0:00:31]} 38. h4 {[%clk 0:00:27]}  Nf3+ {[%clk 0:00:31]} 39. Kc3 {[%clk 0:00:27]}  Kg7 {[%clk 0:00:28]} 40. Nd1 {[%clk 0:00:25]}  Rc6+ {[%clk 0:00:27]} 41. Kb2 {[%clk 0:00:24]}  Ne5 {[%clk 0:00:26]} 42. Nf4 {[%clk 0:00:22]}  b4 {[%clk 0:00:20]} 43. Kb3 {[%clk 0:00:21]}  a5 {[%clk 0:00:20]} 44. Ka4 {[%clk 0:00:20]}  Rc2 {[%clk 0:00:17]} 45. Kb3 {[%clk 0:00:16]}  Rd2 {[%clk 0:00:16]} 46. Ne3 {[%clk 0:00:17]}  Nxd3 {[%clk 0:00:16]} 47. Nc4 {[%clk 0:00:12]}  Nc5# {[%clk 0:00:16]} 0-1


[Site "https://www.chess.com"]

[Event "Titled Tuesday Blitz January 03 Late 2023"]
[White "Keymer, Vincent"]
[Black "Kuegel, Tobias"]
[WhiteFideId "12940690"]
[BlackFideId "4636295"]
[WhiteElo "2700"]
[BlackElo "2332"]
[Result "1-0"]
[Round "01"]
[TimeControl "180+2"]
[Date "2023.01.03"]
[WhiteClock "0:01:52"]
[BlackClock "0:00:05"]

1. Nf3 {[%clk 0:02:44]}  d5 {[%clk 0:02:58]} 2. e3 {[%clk 0:02:43]}  Nf6 {[%clk 0:02:57]} 3. c4 {[%clk 0:02:43]}  e6 {[%clk 0:02:55]} 4. Nc3 {[%clk 0:02:41]}  Be7 {[%clk 0:02:48]} 5. b3 {[%clk 0:02:39]}  O-O {[%clk 0:02:47]} 6. Bb2 {[%clk 0:02:39]}  c5 {[%clk 0:02:39]} 7. cxd5 {[%clk 0:02:39]}  Nxd5 {[%clk 0:02:35]} 8. Qc2 {[%clk 0:02:38]}  b6 {[%clk 0:02:19]} 9. Nxd5 {[%clk 0:02:36]}  Qxd5 {[%clk 0:02:10]} 10. Bd3 {[%clk 0:02:35]}  f5 {[%clk 0:02:00]} 11. Rd1 {[%clk 0:02:34]}  Bb7 {[%clk 0:01:39]} 12. Bc4 {[%clk 0:02:34]}  Qd6 {[%clk 0:01:25]} 13. d4 {[%clk 0:02:34]}  Be4 {[%clk 0:01:13]} 14. Qe2 {[%clk 0:02:23]}  Nc6 {[%clk 0:00:53]} 15. dxc5 {[%clk 0:02:20]}  Qxc5 {[%clk 0:00:52]} 16. Bxe6+ {[%clk 0:02:20]}  Kh8 {[%clk 0:00:51]} 17. O-O {[%clk 0:02:20]}  Rad8 {[%clk 0:00:34]} 18. Qc4 {[%clk 0:02:11]}  Qxc4 {[%clk 0:00:32]} 19. Bxc4 {[%clk 0:02:10]}  Rxd1 {[%clk 0:00:27]} 20. Rxd1 {[%clk 0:02:10]}  Rd8 {[%clk 0:00:27]} 21. Rxd8+ {[%clk 0:02:08]}  Bxd8 {[%clk 0:00:28]} 22. Ne5 {[%clk 0:02:05]}  Nxe5 {[%clk 0:00:26]} 23. Bxe5 {[%clk 0:02:05]}  h6 {[%clk 0:00:18]} 24. b4 {[%clk 0:02:03]}  Kh7 {[%clk 0:00:17]} 25. b5 {[%clk 0:02:02]}  Kg6 {[%clk 0:00:06]} 26. f3 {[%clk 0:02:03]}  Bb1 {[%clk 0:00:06]} 27. Bb8 {[%clk 0:02:01]}  Be7 {[%clk 0:00:06]} 28. Kf2 {[%clk 0:01:57]}  Bc5 {[%clk 0:00:06]} 29. g3 {[%clk 0:01:57]}  Kf6 {[%clk 0:00:05]} 30. Bxa7 {[%clk 0:01:53]}  g5 {[%clk 0:00:05]} 31. Ke2 {[%clk 0:01:54]}  g4 {[%clk 0:00:04]} 32. a4 {[%clk 0:01:50]}  gxf3+ {[%clk 0:00:04]} 33. Kxf3 {[%clk 0:01:51]}  Be4+ {[%clk 0:00:04]} 34. Ke2 {[%clk 0:01:52]}  Ke5 {[%clk 0:00:03]} 35. a5 {[%clk 0:01:52]}  Kd6 {[%clk 0:00:04]} 36. Bxb6 {[%clk 0:01:52]}  Bxb6 {[%clk 0:00:04]} 37. axb6 {[%clk 0:01:53]}  Bb7 {[%clk 0:00:04]} 38. Bd3 {[%clk 0:01:53]}  Kc5 {[%clk 0:00:04]} 39. Bxf5 {[%clk 0:01:50]}  Kxb5 {[%clk 0:00:05]} 40. e4 {[%clk 0:01:49]}  Kxb6 {[%clk 0:00:05]} 41. Ke3 {[%clk 0:01:50]}  Kc5 {[%clk 0:00:06]} 42. Kf4 {[%clk 0:01:49]}  Kd6 {[%clk 0:00:06]} 43. e5+ {[%clk 0:01:50]}  Ke7 {[%clk 0:00:07]} 44. Kg4 {[%clk 0:01:50]}  Bd5 {[%clk 0:00:01]} 45. Kh5 {[%clk 0:01:50]}  Be6 {[%clk 0:00:01]} 46. Bxe6 {[%clk 0:01:50]}  Kxe6 {[%clk 0:00:02]} 47. Kxh6 {[%clk 0:01:50]}  Kxe5 {[%clk 0:00:03]} 48. g4 {[%clk 0:01:50]}  Kf6 {[%clk 0:00:03]} 49. g5+ {[%clk 0:01:51]}  Kf7 {[%clk 0:00:04]} 50. Kh7 {[%clk 0:01:51]}  Kf8 {[%clk 0:00:04]} 51. g6 {[%clk 0:01:52]}  Ke7 {[%clk 0:00:05]} 52. h4 {[%clk 0:01:52]} 1-0


[Site "https://www.chess.com"]

[Event "Titled Tuesday Blitz January 03 Late 2023"]
[White "Andreev, Eduard"]
[Black "Shimanov, Aleksandr"]
[WhiteFideId "14103400"]
[BlackFideId "4198603"]
[WhiteElo "2413"]
[BlackElo "2581"]
[Result "1-0"]
[Round "01"]
[TimeControl "180+2"]
[Date "2023.01.03"]
[WhiteClock "0:00:12"]
[BlackClock "0:00:10"]

1. Nf3 {[%clk 0:02:58]}  g6 {[%clk 0:02:58]} 2. g3 {[%clk 0:02:58]}  Bg7 {[%clk 0:02:59]} 3. d4 {[%clk 0:02:58]}  d5 {[%clk 0:02:58]} 4. c4 {[%clk 0:02:57]}  e6 {[%clk 0:02:56]} 5. Bg2 {[%clk 0:02:56]}  Ne7 {[%clk 0:02:56]} 6. O-O {[%clk 0:02:56]}  Nbc6 {[%clk 0:02:55]} 7. cxd5 {[%clk 0:02:50]}  exd5 {[%clk 0:02:56]} 8. Nc3 {[%clk 0:02:49]}  O-O {[%clk 0:02:56]} 9. Bf4 {[%clk 0:02:48]}  Bg4 {[%clk 0:02:55]} 10. e3 {[%clk 0:02:40]}  Qd7 {[%clk 0:02:54]} 11. Qb3 {[%clk 0:02:35]}  Bxf3 {[%clk 0:02:35]} 12. Bxf3 {[%clk 0:02:36]}  Na5 {[%clk 0:02:35]} 13. Qa4 {[%clk 0:02:27]}  Qxa4 {[%clk 0:02:28]} 14. Nxa4 {[%clk 0:02:28]}  c6 {[%clk 0:02:29]} 15. b3 {[%clk 0:02:23]}  b6 {[%clk 0:02:16]} 16. Rac1 {[%clk 0:02:22]}  Rac8 {[%clk 0:02:16]} 17. Bd6 {[%clk 0:02:14]}  Bf6 {[%clk 0:02:13]} 18. Bg4 {[%clk 0:02:12]}  Rcd8 {[%clk 0:02:09]} 19. Bc7 {[%clk 0:02:06]}  Ra8 {[%clk 0:02:07]} 20. Bd6 {[%clk 0:02:03]}  h5 {[%clk 0:02:02]} 21. Bh3 {[%clk 0:02:03]}  Rfd8 {[%clk 0:02:01]} 22. Bc7 {[%clk 0:02:00]}  Rf8 {[%clk 0:02:00]} 23. Bd7 {[%clk 0:01:55]}  Kg7 {[%clk 0:01:26]} 24. Rfd1 {[%clk 0:01:40]}  g5 {[%clk 0:01:24]} 25. Rc2 {[%clk 0:01:37]}  g4 {[%clk 0:01:22]} 26. Nb2 {[%clk 0:01:37]}  Nb7 {[%clk 0:00:44]} 27. Nd3 {[%clk 0:01:16]}  Nd8 {[%clk 0:00:41]} 28. Nf4 {[%clk 0:01:14]}  Rh8 {[%clk 0:00:41]} 29. Bxd8 {[%clk 0:01:04]}  Raxd8 {[%clk 0:00:40]} 30. Bxc6 {[%clk 0:01:05]}  Bg5 {[%clk 0:00:39]} 31. Bb7 {[%clk 0:01:00]}  Rd7 {[%clk 0:00:39]} 32. Ba6 {[%clk 0:00:58]}  Bxf4 {[%clk 0:00:39]} 33. gxf4 {[%clk 0:00:56]}  Nf5 {[%clk 0:00:39]} 34. Bc8 {[%clk 0:00:52]}  Rhd8 {[%clk 0:00:16]} 35. Bxd7 {[%clk 0:00:51]}  Rxd7 {[%clk 0:00:17]} 36. Rdc1 {[%clk 0:00:51]}  h4 {[%clk 0:00:18]} 37. Rc7 {[%clk 0:00:48]}  Rd8 {[%clk 0:00:18]} 38. Rc8 {[%clk 0:00:48]}  Rd6 {[%clk 0:00:18]} 39. R1c6 {[%clk 0:00:47]}  Rd7 {[%clk 0:00:18]} 40. R8c7 {[%clk 0:00:46]}  Rd8 {[%clk 0:00:18]} 41. Rxa7 {[%clk 0:00:45]}  Nd6 {[%clk 0:00:18]} 42. a4 {[%clk 0:00:40]}  Ne4 {[%clk 0:00:15]} 43. b4 {[%clk 0:00:37]}  h3 {[%clk 0:00:15]} 44. Kf1 {[%clk 0:00:33]}  Nd2+ {[%clk 0:00:15]} 45. Kg1 {[%clk 0:00:31]}  Nf3+ {[%clk 0:00:16]} 46. Kh1 {[%clk 0:00:31]}  Re8 {[%clk 0:00:15]} 47. Rcc7 {[%clk 0:00:28]}  Kg6 {[%clk 0:00:09]} 48. Rxf7 {[%clk 0:00:24]}  Rc8 {[%clk 0:00:09]} 49. Rfc7 {[%clk 0:00:24]}  Re8 {[%clk 0:00:09]} 50. a5 {[%clk 0:00:18]}  bxa5 {[%clk 0:00:09]} 51. b5 {[%clk 0:00:18]}  Nxd4 {[%clk 0:00:05]} 52. b6 {[%clk 0:00:16]}  Re6 {[%clk 0:00:05]} 53. Ra6 {[%clk 0:00:12]}  Kf5 {[%clk 0:00:03]} 54. b7 {[%clk 0:00:09]}  Re8 {[%clk 0:00:03]} 55. Rc8 {[%clk 0:00:08]}  Re7 {[%clk 0:00:02]} 56. b8=Q {[%clk 0:00:08]}  Ke4 {[%clk 0:00:03]} 57. Re8 {[%clk 0:00:08]}  Nf5 {[%clk 0:00:02]} 58. Rxe7+ {[%clk 0:00:08]}  Nxe7 {[%clk 0:00:03]} 59. Qe5+ {[%clk 0:00:09]}  Kd3 {[%clk 0:00:04]} 60. Qxe7 {[%clk 0:00:09]}  Ke2 {[%clk 0:00:05]} 61. Qe5 {[%clk 0:00:09]}  Kxf2 {[%clk 0:00:06]} 62. Qxd5 {[%clk 0:00:10]}  g3 {[%clk 0:00:05]} 63. hxg3 {[%clk 0:00:11]}  a4 {[%clk 0:00:05]} 64. f5 {[%clk 0:00:11]}  a3 {[%clk 0:00:06]} 65. Rxa3 {[%clk 0:00:11]}  h2 {[%clk 0:00:06]} 66. Ra2+ {[%clk 0:00:11]}  Kxg3 {[%clk 0:00:07]} 67. Qg2+ {[%clk 0:00:11]}  Kh4 {[%clk 0:00:07]} 68. Qxh2+ {[%clk 0:00:11]}  Kg5 {[%clk 0:00:08]} 69. Qg2+ {[%clk 0:00:12]}  Kf6 {[%clk 0:00:09]} 70. Qg6+ {[%clk 0:00:11]}  Ke5 {[%clk 0:00:10]} 71. Qe6# {[%clk 0:00:12]} 1-0


[Site "https://www.chess.com"]

[Event "Titled Tuesday Blitz January 03 Late 2023"]
[White "Zomorrodian, Eilia"]
[Black "Lazavik, Denis"]
[WhiteFideId "12551805"]
[BlackFideId "13515110"]
[WhiteElo "2109"]
[BlackElo "2544"]
[Result "0-1"]
[Round "01"]
[TimeControl "180+2"]
[Date "2023.01.03"]
[WhiteClock "0:00:19"]
[BlackClock "0:00:08"]

1. e4 {[%clk 0:02:48]}  c5 {[%clk 0:02:55]} 2. Nf3 {[%clk 0:02:49]}  e6 {[%clk 0:02:55]} 3. c3 {[%clk 0:02:47]}  d5 {[%clk 0:02:53]} 4. exd5 {[%clk 0:02:47]}  Qxd5 {[%clk 0:02:53]} 5. d4 {[%clk 0:02:48]}  Nf6 {[%clk 0:02:53]} 6. Be3 {[%clk 0:02:48]}  cxd4 {[%clk 0:02:50]} 7. cxd4 {[%clk 0:02:47]}  Nc6 {[%clk 0:02:51]} 8. Nc3 {[%clk 0:02:47]}  Qd6 {[%clk 0:02:52]} 9. Bd3 {[%clk 0:02:42]}  Be7 {[%clk 0:02:52]} 10. O-O {[%clk 0:02:42]}  O-O {[%clk 0:02:52]} 11. Qe2 {[%clk 0:02:42]}  b6 {[%clk 0:02:50]} 12. Rad1 {[%clk 0:02:41]}  Bb7 {[%clk 0:02:50]} 13. a3 {[%clk 0:02:41]}  Rfd8 {[%clk 0:02:44]} 14. Bb1 {[%clk 0:02:41]}  g6 {[%clk 0:02:41]} 15. Bh6 {[%clk 0:02:38]}  Ng4 {[%clk 0:02:33]} 16. Be3 {[%clk 0:02:27]}  Qc7 {[%clk 0:02:24]} 17. Rfe1 {[%clk 0:02:18]}  Nxe3 {[%clk 0:02:22]} 18. fxe3 {[%clk 0:02:15]}  Bf6 {[%clk 0:02:16]} 19. Ba2 {[%clk 0:02:09]}  Ne7 {[%clk 0:02:11]} 20. e4 {[%clk 0:02:06]}  Bg7 {[%clk 0:02:09]} 21. Rf1 {[%clk 0:02:04]}  Rac8 {[%clk 0:02:05]} 22. Ng5 {[%clk 0:02:03]}  Bxd4+ {[%clk 0:02:01]} 23. Rxd4 {[%clk 0:02:03]}  Rxd4 {[%clk 0:02:02]} 24. Rxf7 {[%clk 0:02:03]}  Qc5 {[%clk 0:00:51]} 25. Rg7+ {[%clk 0:02:02]}  Kxg7 {[%clk 0:00:42]} 26. Nxe6+ {[%clk 0:02:02]}  Kh8 {[%clk 0:00:37]} 27. Nxc5 {[%clk 0:02:01]}  bxc5 {[%clk 0:00:38]} 28. Qf2 {[%clk 0:01:53]}  Ng8 {[%clk 0:00:30]} 29. Qf7 {[%clk 0:01:39]}  Bxe4 {[%clk 0:00:21]} 30. Qe6 {[%clk 0:01:38]}  Rf8 {[%clk 0:00:14]} 31. Qe5+ {[%clk 0:01:37]}  Nf6 {[%clk 0:00:15]} 32. Qe7 {[%clk 0:01:30]}  Rdd8 {[%clk 0:00:09]} 33. h4 {[%clk 0:01:17]}  Ba8 {[%clk 0:00:09]} 34. Qxc5 {[%clk 0:01:12]}  Ng4 {[%clk 0:00:08]} 35. Qg5 {[%clk 0:00:56]}  Nf6 {[%clk 0:00:07]} 36. Qe5 {[%clk 0:00:54]}  Rde8 {[%clk 0:00:07]} 37. Qg3 {[%clk 0:00:53]}  Kg7 {[%clk 0:00:07]} 38. Qc7+ {[%clk 0:00:49]}  Kh8 {[%clk 0:00:07]} 39. Qg3 {[%clk 0:00:45]}  Re7 {[%clk 0:00:07]} 40. Qg5 {[%clk 0:00:43]}  Re1+ {[%clk 0:00:07]} 41. Kh2 {[%clk 0:00:44]}  Kg7 {[%clk 0:00:05]} 42. b4 {[%clk 0:00:28]}  h5 {[%clk 0:00:05]} 43. Nd5 {[%clk 0:00:20]}  Ng4+ {[%clk 0:00:05]} 44. Kg3 {[%clk 0:00:20]}  Re5 {[%clk 0:00:06]} 45. Qd2 {[%clk 0:00:19]}  Bxd5 {[%clk 0:00:06]} 46. Bxd5 {[%clk 0:00:19]}  Ne3 {[%clk 0:00:06]} 47. Bf3 {[%clk 0:00:19]}  Nf1+ {[%clk 0:00:07]} 48. Kf2 {[%clk 0:00:19]}  Nxd2 {[%clk 0:00:08]} 0-1


[Site "https://www.chess.com"]

[Event "Titled Tuesday Blitz January 03 Late 2023"]
[White "Dardha, Daniel"]
[Black "Silva, Miguel Antonio Neto"]
[WhiteFideId "240990"]
[BlackFideId "1911929"]
[WhiteElo "2631"]
[BlackElo "2204"]
[Result "1-0"]
[Round "01"]
[TimeControl "180+2"]
[Date "2023.01.03"]
[WhiteClock "0:00:10"]
[BlackClock "0:00:11"]

1. d4 {[%clk 0:03:00]}  Nf6 {[%clk 0:02:59]} 2. Bg5 {[%clk 0:02:59]}  d5 {[%clk 0:02:56]} 3. e3 {[%clk 0:02:59]}  Ne4 {[%clk 0:02:52]} 4. Bf4 {[%clk 0:02:59]}  c5 {[%clk 0:02:52]} 5. Nd2 {[%clk 0:02:58]}  Nf6 {[%clk 0:02:47]} 6. dxc5 {[%clk 0:02:49]}  e6 {[%clk 0:02:37]} 7. b4 {[%clk 0:02:47]}  g6 {[%clk 0:02:25]} 8. Ngf3 {[%clk 0:02:44]}  Bg7 {[%clk 0:02:25]} 9. Rb1 {[%clk 0:02:34]}  O-O {[%clk 0:02:24]} 10. Be2 {[%clk 0:02:28]}  a5 {[%clk 0:02:23]} 11. a3 {[%clk 0:02:28]}  axb4 {[%clk 0:02:23]} 12. axb4 {[%clk 0:02:29]}  Nc6 {[%clk 0:02:13]} 13. O-O {[%clk 0:02:28]}  Re8 {[%clk 0:02:08]} 14. c4 {[%clk 0:02:22]}  d4 {[%clk 0:01:59]} 15. b5 {[%clk 0:02:19]}  dxe3 {[%clk 0:01:58]} 16. Bxe3 {[%clk 0:02:16]}  Ne7 {[%clk 0:01:52]} 17. Nb3 {[%clk 0:02:13]}  Nf5 {[%clk 0:01:51]} 18. Qxd8 {[%clk 0:02:09]}  Rxd8 {[%clk 0:01:51]} 19. Bf4 {[%clk 0:02:09]}  Ne4 {[%clk 0:01:50]} 20. Rbd1 {[%clk 0:01:55]}  Bd7 {[%clk 0:01:39]} 21. Be5 {[%clk 0:01:41]}  Nc3 {[%clk 0:01:36]} 22. Rde1 {[%clk 0:01:16]}  Be8 {[%clk 0:01:32]} 23. Bxg7 {[%clk 0:01:09]}  Kxg7 {[%clk 0:01:31]} 24. g4 {[%clk 0:01:09]}  Ne7 {[%clk 0:01:28]} 25. Nbd4 {[%clk 0:00:51]}  Ra4 {[%clk 0:01:08]} 26. Rc1 {[%clk 0:00:48]}  Nxe2+ {[%clk 0:00:48]} 27. Nxe2 {[%clk 0:00:49]}  h5 {[%clk 0:00:38]} 28. gxh5 {[%clk 0:00:48]}  Nf5 {[%clk 0:00:37]} 29. hxg6 {[%clk 0:00:46]}  f6 {[%clk 0:00:37]} 30. Nf4 {[%clk 0:00:42]}  Rda8 {[%clk 0:00:17]} 31. Nxe6+ {[%clk 0:00:41]}  Kxg6 {[%clk 0:00:17]} 32. Nc7 {[%clk 0:00:41]}  Rc8 {[%clk 0:00:16]} 33. Nxe8 {[%clk 0:00:41]}  Rxe8 {[%clk 0:00:17]} 34. Rfd1 {[%clk 0:00:34]}  Kh5 {[%clk 0:00:16]} 35. Rd5 {[%clk 0:00:32]}  Kg4 {[%clk 0:00:16]} 36. Re1 {[%clk 0:00:17]}  Rxe1+ {[%clk 0:00:13]} 37. Nxe1 {[%clk 0:00:17]}  Rxc4 {[%clk 0:00:14]} 38. f3+ {[%clk 0:00:10]}  Kf4 {[%clk 0:00:13]} 39. Ng2+ {[%clk 0:00:10]}  Kg5 {[%clk 0:00:11]} 40. Rxf5+ {[%clk 0:00:10]} 1-0


[Site "https://www.chess.com"]

[Event "Titled Tuesday Blitz January 03 Late 2023"]
[White "Bortnyk, Mykola"]
[Black "Jimenez Almeida, Luis David"]
[WhiteFideId "14120836"]
[BlackFideId "22242244"]
[WhiteElo "2425"]
[BlackElo "2242"]
[Result "1-0"]
[Round "01"]
[TimeControl "180+2"]
[Date "2023.01.03"]
[WhiteClock "0:00:54"]
[BlackClock "0:00:16"]

1. e4 {[%clk 0:03:00]}  Nf6 {[%clk 0:02:58]} 2. e5 {[%clk 0:02:59]}  Nd5 {[%clk 0:02:58]} 3. d4 {[%clk 0:03:00]}  d6 {[%clk 0:02:58]} 4. c4 {[%clk 0:03:00]}  Nb6 {[%clk 0:02:58]} 5. f4 {[%clk 0:03:01]}  dxe5 {[%clk 0:02:57]} 6. fxe5 {[%clk 0:03:02]}  c5 {[%clk 0:02:57]} 7. d5 {[%clk 0:02:55]}  e6 {[%clk 0:02:58]} 8. Nc3 {[%clk 0:02:52]}  exd5 {[%clk 0:02:56]} 9. cxd5 {[%clk 0:02:52]}  c4 {[%clk 0:02:57]} 10. d6 {[%clk 0:02:43]}  Nc6 {[%clk 0:02:54]} 11. Nf3 {[%clk 0:02:39]}  Bg4 {[%clk 0:02:53]} 12. Bf4 {[%clk 0:02:37]}  g5 {[%clk 0:02:40]} 13. Bg3 {[%clk 0:02:33]}  Bg7 {[%clk 0:02:37]} 14. Be2 {[%clk 0:02:13]}  O-O {[%clk 0:02:22]} 15. O-O {[%clk 0:02:09]}  Re8 {[%clk 0:02:15]} 16. Ne4 {[%clk 0:01:58]}  Bxf3 {[%clk 0:02:07]} 17. Bxf3 {[%clk 0:01:57]}  Nxe5 {[%clk 0:02:07]} 18. Bh5 {[%clk 0:01:55]}  Ng6 {[%clk 0:02:02]} 19. Qf3 {[%clk 0:01:52]}  Rxe4 {[%clk 0:01:36]} 20. Qxe4 {[%clk 0:01:46]}  Bxb2 {[%clk 0:01:35]} 21. Qxb7 {[%clk 0:01:39]}  Qd7 {[%clk 0:01:18]} 22. Qxd7 {[%clk 0:01:28]}  Nxd7 {[%clk 0:01:19]} 23. Rab1 {[%clk 0:01:28]}  Bd4+ {[%clk 0:01:19]} 24. Bf2 {[%clk 0:01:26]}  Be5 {[%clk 0:01:16]} 25. Rb7 {[%clk 0:01:23]}  Nf6 {[%clk 0:01:11]} 26. Be2 {[%clk 0:01:19]}  Bxd6 {[%clk 0:01:04]} 27. Bxc4 {[%clk 0:01:14]}  Ne5 {[%clk 0:01:04]} 28. Bb3 {[%clk 0:01:15]}  Nfg4 {[%clk 0:00:36]} 29. Bd4 {[%clk 0:01:06]}  a5 {[%clk 0:00:35]} 30. h3 {[%clk 0:01:03]}  a4 {[%clk 0:00:33]} 31. Bd5 {[%clk 0:01:00]}  Ra5 {[%clk 0:00:31]} 32. Bxf7+ {[%clk 0:00:55]}  Nxf7 {[%clk 0:00:31]} 33. Rfxf7 {[%clk 0:00:56]}  Rd5 {[%clk 0:00:26]} 34. Rg7+ {[%clk 0:00:54]}  Kf8 {[%clk 0:00:26]} 35. Rxh7 {[%clk 0:00:54]}  Rxd4 {[%clk 0:00:16]} 36. Rh8# {[%clk 0:00:54]} 1-0


[Site "https://www.chess.com"]